[Event "*** Titled Tuesday Blitz"]
[Site "Chess.com"]
[Date "2020.04.07"]
[Round "8"]
[White "Playgood28"]
[Black "benko_008"]
[Result "0-1"]
[WhiteElo "2234"]
[BlackElo "2399"]
[TimeControl "180+1"]
[EndTime "14:33:18 PDT"]
[Termination "benko_008 won by resignation"]

1. d4 {[%clk 0:03:00.9]} 1... d5 {[%clk 0:02:58.5]} 2. c4 {[%clk 0:03:00.1]}
2... e6 {[%clk 0:02:58.2]} 3. Nc3 {[%clk 0:02:59.7]} 3... Nf6 {[%clk 0:02:57.8]}
4. Bg5 {[%clk 0:02:59.8]} 4... Nbd7 {[%clk 0:02:55.7]} 5. cxd5 {[%clk
0:02:59.8]} 5... exd5 {[%clk 0:02:55]} 6. e3 {[%clk 0:03:00.1]} 6... c6 {[%clk
0:02:53.9]} 7. Nf3 {[%clk 0:03:00.2]} 7... Be7 {[%clk 0:02:52.8]} 8. Be2 {[%clk
0:03:00.4]} 8... Nh5 {[%clk 0:02:48.5]} 9. Bxe7 {[%clk 0:02:56]} 9... Qxe7
{[%clk 0:02:49.4]} 10. O-O {[%clk 0:02:55.3]} 10... Nhf6 {[%clk 0:02:48.3]} 11.
Rb1 {[%clk 0:02:52.8]} 11... O-O {[%clk 0:02:45.4]} 12. b4 {[%clk 0:02:52]}
12... Nb6 {[%clk 0:02:42.4]} 13. b5 {[%clk 0:02:48.8]} 13... Bf5 {[%clk
0:02:38.9]} 14. Bd3 {[%clk 0:02:44.3]} 14... Bxd3 {[%clk 0:02:34.6]} 15. Qxd3
{[%clk 0:02:43.7]} 15... c5 {[%clk 0:02:27.6]} 16. dxc5 {[%clk 0:02:41.1]} 16...
Qxc5 {[%clk 0:02:28.5]} 17. a4 {[%clk 0:02:28.9]} 17... Qc4 {[%clk 0:02:22.9]}
18. Ne5 {[%clk 0:02:23.7]} 18... Qh4 {[%clk 0:01:50.4]} 19. a5 {[%clk
0:02:17.5]} 19... Nc4 {[%clk 0:01:49.3]} 20. Nxc4 {[%clk 0:02:12.4]} 20... dxc4
{[%clk 0:01:50.2]} 21. Qd4 {[%clk 0:02:07]} 21... Qxd4 {[%clk 0:01:45.1]} 22.
exd4 {[%clk 0:02:05.7]} 22... Rfd8 {[%clk 0:01:44.6]} 23. Rfd1 {[%clk
0:02:05.2]} 23... Nd5 {[%clk 0:01:43.3]} 24. Nxd5 {[%clk 0:01:58.3]} 24... Rxd5
{[%clk 0:01:44.2]} 25. Rb4 {[%clk 0:01:57.6]} 25... Rc8 {[%clk 0:01:42.2]} 26.
Kf1 {[%clk 0:01:56]} 26... a6 {[%clk 0:01:34.2]} 27. bxa6 {[%clk 0:01:51.5]}
27... bxa6 {[%clk 0:01:35.1]} 28. Rdb1 {[%clk 0:01:42]} 28... Rxd4 {[%clk
0:01:28.9]} 29. Rb6 {[%clk 0:01:37.2]} 29... c3 {[%clk 0:01:26.6]} 30. Rc6
{[%clk 0:01:32.8]} 30... Rdd8 {[%clk 0:01:24.7]} 31. Rxc8 {[%clk 0:01:26.6]}
31... Rxc8 {[%clk 0:01:25.6]} 32. Ke2 {[%clk 0:01:17]} 32... Kf8 {[%clk
0:01:20.3]} 33. Kd3 {[%clk 0:01:12.7]} 33... c2 {[%clk 0:01:17.5]} 34. Rc1
{[%clk 0:01:11.5]} 34... Ke7 {[%clk 0:01:15.8]} 35. Rxc2 {[%clk 0:01:10.2]}
35... Rxc2 {[%clk 0:01:13.7]} 36. Kxc2 {[%clk 0:01:10.3]} 36... Kd6 {[%clk
0:01:13.8]} 37. Kd3 {[%clk 0:00:56.9]} 37... Kc5 {[%clk 0:01:14.7]} 38. f4
{[%clk 0:00:56.4]} 38... Kb5 {[%clk 0:01:07.7]} 39. Kd4 {[%clk 0:00:46.9]} 39...
Kxa5 {[%clk 0:01:07.2]} 40. Kd5 {[%clk 0:00:43.6]} 40... Kb4 {[%clk 0:01:05.2]}
41. Kd6 {[%clk 0:00:44]} 41... a5 {[%clk 0:01:03.6]} 42. f5 {[%clk 0:00:41.9]}
42... a4 {[%clk 0:01:00.8]} 43. Ke7 {[%clk 0:00:41.6]} 43... f6 {[%clk
0:00:57.5]} 44. Kf7 {[%clk 0:00:40.4]} 44... a3 {[%clk 0:00:58.4]} 45. Kxg7
{[%clk 0:00:39.6]} 45... a2 {[%clk 0:00:59.3]} 46. Kxf6 {[%clk 0:00:39.5]} 46...
a1=Q+ {[%clk 0:01:00.2]} 0-1

[Event "*** Titled Tuesday Blitz"]
[Site "Chess.com"]
[Date "2020.04.07"]
[Round "8"]
[White "Jenia84"]
[Black "bazar-wokzal"]
[Result "0-1"]
[WhiteElo "2301"]
[BlackElo "2525"]
[TimeControl "180+1"]
[EndTime "14:33:19 PDT"]
[Termination "bazar-wokzal won by resignation"]

1. Nf3 {[%clk 0:03:00.9]} 1... c5 {[%clk 0:02:58.8]} 2. g3 {[%clk 0:02:58.7]}
2... Nc6 {[%clk 0:02:58]} 3. Bg2 {[%clk 0:02:59.5]} 3... e5 {[%clk 0:02:57.7]}
4. O-O {[%clk 0:02:59.4]} 4... g5 {[%clk 0:02:57.9]} 5. d3 {[%clk 0:02:57.1]}
5... g4 {[%clk 0:02:58]} 6. Ne1 {[%clk 0:02:56.5]} 6... h5 {[%clk 0:02:58.2]} 7.
f3 {[%clk 0:02:53.8]} 7... d6 {[%clk 0:02:57.2]} 8. fxg4 {[%clk 0:02:49.7]} 8...
Bxg4 {[%clk 0:02:55.2]} 9. Qd2 {[%clk 0:02:40]} 9... Bh6 {[%clk 0:02:50]} 10. e3
{[%clk 0:02:36.8]} 10... Qg5 {[%clk 0:02:26.4]} 11. Qf2 {[%clk 0:02:35.9]} 11...
Rh7 {[%clk 0:02:17.3]} 12. Nc3 {[%clk 0:02:34.7]} 12... O-O-O {[%clk 0:02:13.4]}
13. h4 {[%clk 0:02:19]} 13... Qg7 {[%clk 0:02:08.8]} 14. Nd5 {[%clk 0:02:15.8]}
14... f5 {[%clk 0:02:05.9]} 15. Nf3 {[%clk 0:02:05.5]} 15... Nge7 {[%clk
0:02:03.5]} 16. Nxe7+ {[%clk 0:02:00.6]} 16... Qxe7 {[%clk 0:02:02.4]} 17. Nh2
{[%clk 0:01:56.5]} 17... f4 {[%clk 0:01:46.3]} 18. exf4 {[%clk 0:01:45.8]} 18...
exf4 {[%clk 0:01:41.7]} 19. Bxf4 {[%clk 0:01:39.2]} 19... Ne5 {[%clk 0:01:33.6]}
20. Rae1 {[%clk 0:01:34.1]} 20... Rf8 {[%clk 0:01:25.5]} 21. Nxg4 {[%clk
0:01:28.2]} 21... hxg4 {[%clk 0:01:23]} 22. Qe3 {[%clk 0:01:25.4]} 22... Bxf4
{[%clk 0:01:11.8]} 23. Rxf4 {[%clk 0:01:24.8]} 23... Rxf4 {[%clk 0:01:03.9]} 24.
gxf4 {[%clk 0:01:02.8]} 24... Qxh4 {[%clk 0:00:59.7]} 25. Qe4 {[%clk 0:00:57.1]}
25... Nf3+ {[%clk 0:00:48.8]} 26. Bxf3 {[%clk 0:00:55.9]} 26... gxf3 {[%clk
0:00:48.7]} 27. Qf5+ {[%clk 0:00:46.4]} 27... Kc7 {[%clk 0:00:44.6]} 28. Kf1
{[%clk 0:00:19.6]} 28... Qh1+ {[%clk 0:00:34.5]} 29. Kf2 {[%clk 0:00:19.6]}
29... Qg2+ {[%clk 0:00:29.2]} 30. Ke3 {[%clk 0:00:19.4]} 30... Re7+ {[%clk
0:00:28.6]} 0-1

[Event "*** Titled Tuesday Blitz"]
[Site "Chess.com"]
[Date "2020.04.07"]
[Round "8"]
[White "korbul"]
[Black "ajian"]
[Result "1-0"]
[WhiteElo "2568"]
[BlackElo "2402"]
[TimeControl "180+1"]
[EndTime "14:33:20 PDT"]
[Termination "korbul won on time"]

1. d4 {[%clk 0:03:00.9]} 1... d5 {[%clk 0:02:58.7]} 2. c4 {[%clk 0:03:00.8]}
2... e6 {[%clk 0:02:58.7]} 3. Nc3 {[%clk 0:03:00.8]} 3... Nf6 {[%clk 0:02:58.7]}
4. Nf3 {[%clk 0:03:00.7]} 4... Nbd7 {[%clk 0:02:57.3]} 5. Bf4 {[%clk 0:02:58.9]}
5... dxc4 {[%clk 0:02:48.9]} 6. e4 {[%clk 0:02:55.9]} 6... Bb4 {[%clk
0:02:39.6]} 7. Bxc4 {[%clk 0:02:50.6]} 7... Nxe4 {[%clk 0:02:34.1]} 8. O-O
{[%clk 0:02:49.9]} 8... Nxc3 {[%clk 0:02:26.4]} 9. bxc3 {[%clk 0:02:48.9]} 9...
Bd6 {[%clk 0:02:23.8]} 10. Bg5 {[%clk 0:02:39.7]} 10... Be7 {[%clk 0:02:23.4]}
11. h4 {[%clk 0:02:39.2]} 11... h6 {[%clk 0:02:21.3]} 12. Bxe7 {[%clk
0:02:35.2]} 12... Qxe7 {[%clk 0:02:22.2]} 13. Re1 {[%clk 0:02:35.4]} 13... O-O
{[%clk 0:02:17.8]} 14. Qe2 {[%clk 0:02:34.2]} 14... Nb6 {[%clk 0:01:59.6]} 15.
Bd3 {[%clk 0:02:32.6]} 15... c5 {[%clk 0:01:54.3]} 16. Qe4 {[%clk 0:02:30.9]}
16... f5 {[%clk 0:01:33.2]} 17. Qe5 {[%clk 0:02:30.5]} 17... cxd4 {[%clk
0:01:26.8]} 18. cxd4 {[%clk 0:02:27.7]} 18... Qf6 {[%clk 0:01:15.3]} 19. Qc7
{[%clk 0:02:04.3]} 19... Nd5 {[%clk 0:01:11.7]} 20. Qd6 {[%clk 0:01:54.6]} 20...
Rd8 {[%clk 0:01:08.9]} 21. Qg3 {[%clk 0:01:49.7]} 21... b6 {[%clk 0:00:55.7]}
22. Re2 {[%clk 0:01:34.5]} 22... Bb7 {[%clk 0:00:55.3]} 23. Rae1 {[%clk
0:01:33.1]} 23... Re8 {[%clk 0:00:45.3]} 24. Bb5 {[%clk 0:01:31.7]} 24... Re7
{[%clk 0:00:28]} 25. Ne5 {[%clk 0:01:18.7]} 25... f4 {[%clk 0:00:21.3]} 26. Qh3
{[%clk 0:01:09]} 26... Rc8 {[%clk 0:00:16.8]} 27. Bc4 {[%clk 0:01:08.7]} 27...
Kh8 {[%clk 0:00:08.8]} 28. h5 {[%clk 0:01:07.2]} 28... Ree8 {[%clk 0:00:06.7]}
29. Ng6+ {[%clk 0:01:05.4]} 29... Kh7 {[%clk 0:00:06.6]} 30. Bd3 {[%clk
0:01:03.9]} 30... Kg8 {[%clk 0:00:05.9]} 31. Rxe6 {[%clk 0:01:03.3]} 31... Rxe6
{[%clk 0:00:06.1]} 32. Rxe6 {[%clk 0:01:03.2]} 32... Qf7 {[%clk 0:00:06.5]} 33.
Ne7+ {[%clk 0:01:02.8]} 33... Kh8 {[%clk 0:00:04.3]} 34. Ng6+ {[%clk 0:00:57.5]}
34... Kg8 {[%clk 0:00:04.3]} 35. Re7 {[%clk 0:00:57.3]} 35... Qf6 {[%clk
0:00:02.7]} 36. Rxb7 {[%clk 0:00:56]} 36... f3 {[%clk 0:00:02.4]} 37. Qxc8+
{[%clk 0:00:55]} 1-0

[Event "*** Titled Tuesday Blitz"]
[Site "Chess.com"]
[Date "2020.04.07"]
[Round "8"]
[White "BvsN"]
[Black "Yanidze"]
[Result "0-1"]
[WhiteElo "2307"]
[BlackElo "2460"]
[TimeControl "180+1"]
[EndTime "14:33:20 PDT"]
[Termination "Yanidze won by resignation"]

1. d4 {[%clk 0:03:00.9]} 1... g6 {[%clk 0:02:53.8]} 2. e4 {[%clk 0:03:00.5]}
2... d6 {[%clk 0:02:50.7]} 3. Nc3 {[%clk 0:03:00.4]} 3... Nf6 {[%clk 0:02:51.3]}
4. Be3 {[%clk 0:03:00.1]} 4... a6 {[%clk 0:02:51.6]} 5. h3 {[%clk 0:02:59.9]}
5... b5 {[%clk 0:02:52]} 6. e5 {[%clk 0:02:58.6]} 6... Nfd7 {[%clk 0:02:49.6]}
7. Qf3 {[%clk 0:02:56.6]} 7... c6 {[%clk 0:02:45.6]} 8. exd6 {[%clk 0:02:51.6]}
8... exd6 {[%clk 0:02:46.5]} 9. O-O-O {[%clk 0:02:51.3]} 9... Bg7 {[%clk
0:02:46]} 10. h4 {[%clk 0:02:50.8]} 10... h5 {[%clk 0:02:45.1]} 11. Bg5 {[%clk
0:02:47]} 11... Nf6 {[%clk 0:02:43]} 12. Re1+ {[%clk 0:02:46.9]} 12... Be6
{[%clk 0:02:38]} 13. d5 {[%clk 0:02:45.7]} 13... cxd5 {[%clk 0:02:32.4]} 14.
Nxd5 {[%clk 0:02:43.8]} 14... Nbd7 {[%clk 0:02:28.9]} 15. Nc7+ {[%clk
0:02:33.2]} 15... Qxc7 {[%clk 0:02:15.5]} 16. Qxa8+ {[%clk 0:02:32.6]} 16... Ke7
{[%clk 0:02:14.8]} 17. Qf3 {[%clk 0:02:24.8]} 17... Rc8 {[%clk 0:02:07.3]} 18.
Bd3 {[%clk 0:02:19.4]} 18... Ne5 {[%clk 0:02:03]} 19. Qe2 {[%clk 0:02:13.6]}
19... Kf8 {[%clk 0:01:59.2]} 20. Nf3 {[%clk 0:02:11.1]} 20... Nxd3+ {[%clk
0:01:51.9]} 21. Qxd3 {[%clk 0:02:08.2]} 21... Bf5 {[%clk 0:01:52.2]} 22. Qc3
{[%clk 0:01:43.4]} 22... Qd8 {[%clk 0:01:44.5]} 23. Qb4 {[%clk 0:01:31.9]} 23...
Rxc2+ {[%clk 0:01:42.3]} 24. Kd1 {[%clk 0:01:32.2]} 24... Qb6 {[%clk 0:01:30.5]}
25. Be3 {[%clk 0:01:12.1]} 25... Qc6 {[%clk 0:01:24.8]} 26. Nd4 {[%clk
0:01:08.8]} 26... Qc7 {[%clk 0:01:17]} 27. Nxf5 {[%clk 0:01:05.7]} 27... gxf5
{[%clk 0:01:13.3]} 28. Bf4 {[%clk 0:00:55.8]} 28... Kg8 {[%clk 0:01:07.4]} 29.
Bd2 {[%clk 0:00:28.3]} 29... Ng4 {[%clk 0:01:01.5]} 30. Re8+ {[%clk 0:00:22.1]}
30... Kh7 {[%clk 0:01:00.8]} 31. Qf4 {[%clk 0:00:17]} 31... Qc5 {[%clk
0:00:52.8]} 32. Rf1 {[%clk 0:00:11.3]} 32... Rxb2 {[%clk 0:00:50.9]} 33. Qf3
{[%clk 0:00:06.5]} 33... Qc2+ {[%clk 0:00:49.3]} 0-1

[Event "*** Titled Tuesday Blitz"]
[Site "Chess.com"]
[Date "2020.04.07"]
[Round "8"]
[White "Bathory44"]
[Black "Fianchettoed-Tower"]
[Result "1/2-1/2"]
[WhiteElo "2549"]
[BlackElo "2392"]
[TimeControl "180+1"]
[EndTime "14:33:22 PDT"]
[Termination "Game drawn by repetition"]

1. e4 {[%clk 0:03:00.9]} 1... c5 {[%clk 0:02:59.6]} 2. c3 {[%clk 0:03:00.7]}
2... d6 {[%clk 0:02:57.9]} 3. d4 {[%clk 0:02:59.9]} 3... Nf6 {[%clk 0:02:58.5]}
4. Bd3 {[%clk 0:03:00.2]} 4... g6 {[%clk 0:02:57.7]} 5. Nf3 {[%clk 0:02:59.9]}
5... Bg7 {[%clk 0:02:57.8]} 6. h3 {[%clk 0:02:59]} 6... O-O {[%clk 0:02:57.6]}
7. O-O {[%clk 0:02:58.9]} 7... Qc7 {[%clk 0:02:57.8]} 8. d5 {[%clk 0:02:48.3]}
8... e6 {[%clk 0:02:55.8]} 9. c4 {[%clk 0:02:48.1]} 9... b5 {[%clk 0:02:54.8]}
10. dxe6 {[%clk 0:02:30.2]} 10... Bxe6 {[%clk 0:02:54.8]} 11. cxb5 {[%clk
0:02:30.1]} 11... a6 {[%clk 0:02:51.4]} 12. Nc3 {[%clk 0:02:22.1]} 12... axb5
{[%clk 0:02:48.6]} 13. Nxb5 {[%clk 0:02:16.5]} 13... Qb6 {[%clk 0:02:46.9]} 14.
Bf4 {[%clk 0:02:16.2]} 14... c4 {[%clk 0:02:44.4]} 15. Bxd6 {[%clk 0:01:54.6]}
15... Qxb5 {[%clk 0:02:28.3]} 16. Bxf8 {[%clk 0:01:52.6]} 16... Bxf8 {[%clk
0:02:29.2]} 17. Nd4 {[%clk 0:01:48.3]} 17... Qb6 {[%clk 0:02:23.1]} 18. Nxe6
{[%clk 0:01:46]} 18... Qxe6 {[%clk 0:02:21]} 19. Bc2 {[%clk 0:01:41.2]} 19...
Nc6 {[%clk 0:02:21.2]} 20. Re1 {[%clk 0:01:29.9]} 20... Rd8 {[%clk 0:02:16.3]}
21. Qc1 {[%clk 0:01:30]} 21... Bc5 {[%clk 0:02:13.5]} 22. Ba4 {[%clk 0:01:15.7]}
22... Nd4 {[%clk 0:02:10]} 23. e5 {[%clk 0:01:12]} 23... Nh5 {[%clk 0:02:05]}
24. b3 {[%clk 0:01:05.1]} 24... Nf3+ {[%clk 0:01:42.6]} 25. gxf3 {[%clk
0:00:56.1]} 25... Qxh3 {[%clk 0:01:43]} 26. Qg5 {[%clk 0:00:56.5]} 26... Ng3
{[%clk 0:00:11.7]} 27. Qxd8+ {[%clk 0:00:44.4]} 27... Kg7 {[%clk 0:00:11.7]} 28.
Qf6+ {[%clk 0:00:44.3]} 28... Kg8 {[%clk 0:00:12.3]} 29. Qd8+ {[%clk 0:00:37.5]}
29... Kg7 {[%clk 0:00:12.6]} 30. Qf6+ {[%clk 0:00:36.9]} 30... Kg8 {[%clk
0:00:13]} 31. Qd8+ {[%clk 0:00:35.9]} 1/2-1/2

[Event "*** Titled Tuesday Blitz"]
[Site "Chess.com"]
[Date "2020.04.07"]
[Round "8"]
[White "OK97"]
[Black "AlexOstrovskiy"]
[Result "0-1"]
[WhiteElo "2740"]
[BlackElo "2625"]
[TimeControl "180+1"]
[EndTime "14:33:24 PDT"]
[Termination "AlexOstrovskiy won by resignation"]

1. Nf3 {[%clk 0:03:00.9]} 1... e6 {[%clk 0:02:51.5]} 2. c4 {[%clk 0:02:59.5]}
2... b6 {[%clk 0:02:48.6]} 3. Nc3 {[%clk 0:02:56]} 3... Bb7 {[%clk 0:02:48.6]}
4. e3 {[%clk 0:02:55.6]} 4... f5 {[%clk 0:02:45.9]} 5. d4 {[%clk 0:02:48.7]}
5... Bb4 {[%clk 0:02:43.9]} 6. Bd2 {[%clk 0:02:46.4]} 6... Nf6 {[%clk
0:02:41.5]} 7. a3 {[%clk 0:02:46.6]} 7... Bxc3 {[%clk 0:02:40.3]} 8. Bxc3 {[%clk
0:02:47.5]} 8... O-O {[%clk 0:02:41]} 9. b4 {[%clk 0:02:45.8]} 9... Ne4 {[%clk
0:02:38.4]} 10. Bb2 {[%clk 0:02:46.2]} 10... d6 {[%clk 0:02:39.1]} 11. Be2
{[%clk 0:02:44.5]} 11... Nd7 {[%clk 0:02:39]} 12. O-O {[%clk 0:02:42.9]} 12...
a5 {[%clk 0:02:35.5]} 13. Ne1 {[%clk 0:02:38.3]} 13... Qg5 {[%clk 0:02:30.2]}
14. f4 {[%clk 0:02:05.1]} 14... Qh6 {[%clk 0:02:24.4]} 15. Bf3 {[%clk
0:02:01.8]} 15... g5 {[%clk 0:02:21.1]} 16. fxg5 {[%clk 0:02:01.1]} 16... Qxg5
{[%clk 0:02:22]} 17. Qe2 {[%clk 0:01:58]} 17... Ndf6 {[%clk 0:02:19.6]} 18. Nd3
{[%clk 0:01:54.4]} 18... Rae8 {[%clk 0:02:08.2]} 19. Nf4 {[%clk 0:01:38.6]}
19... e5 {[%clk 0:02:01.7]} 20. dxe5 {[%clk 0:01:34.7]} 20... dxe5 {[%clk
0:02:02.6]} 21. Nd3 {[%clk 0:01:35.2]} 21... Ng4 {[%clk 0:01:54.4]} 22. Bxg4
{[%clk 0:01:24.7]} 22... fxg4 {[%clk 0:01:45.3]} 23. Nxe5 {[%clk 0:01:18.5]}
23... g3 {[%clk 0:01:35.1]} 24. Nf3 {[%clk 0:00:32.4]} 24... Qh6 {[%clk
0:01:21.2]} 25. h3 {[%clk 0:00:21.8]} 25... Nf2 {[%clk 0:01:20.8]} 26. Rxf2
{[%clk 0:00:14.4]} 26... gxf2+ {[%clk 0:01:19.8]} 27. Qxf2 {[%clk 0:00:15.3]}
27... Bxf3 {[%clk 0:01:06.5]} 28. gxf3 {[%clk 0:00:12.8]} 28... Qxe3 {[%clk
0:01:06.6]} 29. Qxe3 {[%clk 0:00:10.7]} 29... Rxe3 {[%clk 0:01:07.5]} 30. bxa5
{[%clk 0:00:09.7]} 30... bxa5 {[%clk 0:01:06.6]} 31. Bd4 {[%clk 0:00:07.6]}
31... Rexf3 {[%clk 0:01:05.2]} 32. Kh2 {[%clk 0:00:08.2]} 32... R8f4 {[%clk
0:00:52.9]} 33. Rg1+ {[%clk 0:00:07.8]} 33... Kf8 {[%clk 0:00:45.2]} 34. Be5
{[%clk 0:00:08]} 34... Rxc4 {[%clk 0:00:43.7]} 0-1

[Event "*** Titled Tuesday Blitz"]
[Site "Chess.com"]
[Date "2020.04.07"]
[Round "8"]
[White "Schachspielerr"]
[Black "PowerThinking2650"]
[Result "1-0"]
[WhiteElo "2687"]
[BlackElo "2355"]
[TimeControl "180+1"]
[EndTime "14:33:24 PDT"]
[Termination "Schachspielerr won by checkmate"]

1. d4 {[%clk 0:03:00.9]} 1... Nf6 {[%clk 0:02:59.9]} 2. c4 {[%clk 0:03:01.1]}
2... g6 {[%clk 0:03:00.1]} 3. Nc3 {[%clk 0:03:01.7]} 3... Bg7 {[%clk 0:03:00.5]}
4. e4 {[%clk 0:03:02.3]} 4... d6 {[%clk 0:03:01]} 5. f3 {[%clk 0:03:02.9]} 5...
O-O {[%clk 0:03:01.2]} 6. Be3 {[%clk 0:03:03.6]} 6... a6 {[%clk 0:02:56.1]} 7.
Qd2 {[%clk 0:03:02.4]} 7... c6 {[%clk 0:02:55]} 8. c5 {[%clk 0:03:00]} 8... Nbd7
{[%clk 0:02:41.9]} 9. cxd6 {[%clk 0:02:58.6]} 9... exd6 {[%clk 0:02:41.6]} 10.
Bd3 {[%clk 0:02:59.3]} 10... b5 {[%clk 0:02:38.8]} 11. Nge2 {[%clk 0:02:59.2]}
11... c5 {[%clk 0:02:38.6]} 12. O-O {[%clk 0:02:57.6]} 12... Bb7 {[%clk
0:02:34.7]} 13. Rac1 {[%clk 0:02:56.8]} 13... Re8 {[%clk 0:02:12.8]} 14. Bf2
{[%clk 0:02:48]} 14... Rc8 {[%clk 0:01:41.3]} 15. dxc5 {[%clk 0:02:41.3]} 15...
dxc5 {[%clk 0:01:38.5]} 16. Bb1 {[%clk 0:02:37.4]} 16... b4 {[%clk 0:01:31.1]}
17. Na4 {[%clk 0:02:36.1]} 17... Qa5 {[%clk 0:01:23.9]} 18. b3 {[%clk 0:02:31]}
18... c4 {[%clk 0:01:23.1]} 19. a3 {[%clk 0:02:18.3]} 19... cxb3 {[%clk
0:01:13.6]} 20. Qxb4 {[%clk 0:02:13.6]} 20... Qxb4 {[%clk 0:01:08.3]} 21. axb4
{[%clk 0:02:14.5]} 21... Bc6 {[%clk 0:00:53]} 22. Nac3 {[%clk 0:02:00.6]} 22...
Ne5 {[%clk 0:00:35.3]} 23. Nd4 {[%clk 0:01:59.5]} 23... Bb7 {[%clk 0:00:33.7]}
24. Nxb3 {[%clk 0:01:59.3]} 24... Nh5 {[%clk 0:00:30.3]} 25. Nc5 {[%clk
0:01:56.8]} 25... Rxc5 {[%clk 0:00:19.4]} 26. bxc5 {[%clk 0:01:49.2]} 26... Nf4
{[%clk 0:00:18.6]} 27. Rfd1 {[%clk 0:01:38.7]} 27... Nxf3+ {[%clk 0:00:15.2]}
28. gxf3 {[%clk 0:01:25]} 28... Bxc3 {[%clk 0:00:15.1]} 29. c6 {[%clk
0:01:25.9]} 29... Bxc6 {[%clk 0:00:14.2]} 30. Bd3 {[%clk 0:01:14.8]} 30... Ba4
{[%clk 0:00:11.4]} 31. Bc2 {[%clk 0:01:02.4]} 31... Ne2+ {[%clk 0:00:07.8]} 32.
Kf1 {[%clk 0:01:02.5]} 32... Bb5 {[%clk 0:00:06.7]} 33. Bd3 {[%clk 0:01:03]}
33... Bxd3 {[%clk 0:00:05.6]} 34. Rxd3 {[%clk 0:01:03.9]} 34... Nxc1 {[%clk
0:00:05.8]} 35. Rxc3 {[%clk 0:01:04.5]} 35... Na2 {[%clk 0:00:05.5]} 36. Rc4
{[%clk 0:01:02.7]} 36... Rb8 {[%clk 0:00:04.3]} 37. Bd4 {[%clk 0:01:02.4]} 37...
Nb4 {[%clk 0:00:04.2]} 38. Be5 {[%clk 0:01:01.7]} 38... Rb7 {[%clk 0:00:02.1]}
39. Rc8# {[%clk 0:01:01.1]} 1-0

[Event "*** Titled Tuesday Blitz"]
[Site "Chess.com"]
[Date "2020.04.07"]
[Round "8"]
[White "CakeinSpace2002"]
[Black "Chessmatus"]
[Result "0-1"]
[WhiteElo "2185"]
[BlackElo "2381"]
[TimeControl "180+1"]
[EndTime "14:33:28 PDT"]
[Termination "Chessmatus won by resignation"]

1. d4 {[%clk 0:03:00.9]} 1... Nf6 {[%clk 0:02:54.1]} 2. Bf4 {[%clk 0:02:56.4]}
2... g6 {[%clk 0:02:53.5]} 3. Nc3 {[%clk 0:02:47.8]} 3... d5 {[%clk 0:02:53.1]}
4. Qd2 {[%clk 0:02:44.1]} 4... Bg7 {[%clk 0:02:40.6]} 5. Bh6 {[%clk 0:02:41.7]}
5... Bxh6 {[%clk 0:02:40.8]} 6. Qxh6 {[%clk 0:02:33.9]} 6... Bf5 {[%clk
0:02:41.1]} 7. O-O-O {[%clk 0:02:30.8]} 7... Ng4 {[%clk 0:02:40.7]} 8. Qh4
{[%clk 0:02:29.6]} 8... e6 {[%clk 0:02:39.4]} 9. Qxd8+ {[%clk 0:02:23]} 9...
Kxd8 {[%clk 0:02:40.3]} 10. Nh3 {[%clk 0:02:22.6]} 10... Nd7 {[%clk 0:02:30.8]}
11. f3 {[%clk 0:02:19.8]} 11... Ne3 {[%clk 0:02:29.9]} 12. g4 {[%clk 0:02:19.5]}
12... Bxc2 {[%clk 0:01:47.3]} 13. Rd2 {[%clk 0:02:00.5]} 13... c5 {[%clk
0:01:47.1]} 14. Rxc2 {[%clk 0:01:54.8]} 14... Nxc2 {[%clk 0:01:44.7]} 15. Kxc2
{[%clk 0:01:55.7]} 15... cxd4 {[%clk 0:01:45]} 16. Nb5 {[%clk 0:01:52.9]} 16...
e5 {[%clk 0:01:44.9]} 17. Ng5 {[%clk 0:01:51.1]} 17... Ke7 {[%clk 0:01:42.1]}
18. Kd2 {[%clk 0:01:48.5]} 18... h6 {[%clk 0:01:39.4]} 19. Nh3 {[%clk
0:01:44.5]} 19... Rhc8 {[%clk 0:01:37.6]} 20. Nf2 {[%clk 0:01:36.3]} 20... a6
{[%clk 0:01:36.5]} 21. Na3 {[%clk 0:01:34.7]} 21... b5 {[%clk 0:01:34]} 22. e3
{[%clk 0:01:31.8]} 22... dxe3+ {[%clk 0:01:33]} 23. Kxe3 {[%clk 0:01:32.7]}
23... b4 {[%clk 0:01:30.1]} 24. Nb1 {[%clk 0:01:29.7]} 24... Rc2 {[%clk
0:01:27.2]} 25. Nd3 {[%clk 0:01:27.3]} 25... a5 {[%clk 0:01:24.9]} 26. Be2
{[%clk 0:01:24.1]} 26... d4+ {[%clk 0:01:23.2]} 27. Kf2 {[%clk 0:01:23.2]} 27...
Rac8 {[%clk 0:01:15.7]} 28. Re1 {[%clk 0:01:20.4]} 28... f5 {[%clk 0:01:13.6]}
29. gxf5 {[%clk 0:01:18.1]} 29... gxf5 {[%clk 0:01:14.5]} 30. Kf1 {[%clk
0:01:18]} 30... Kf6 {[%clk 0:01:12.3]} 31. Kg1 {[%clk 0:01:14.4]} 31... Rg8+
{[%clk 0:01:04]} 32. Kh1 {[%clk 0:01:13.4]} 32... Nc5 {[%clk 0:00:59.5]} 33.
Nxc5 {[%clk 0:01:07.5]} 33... Rxc5 {[%clk 0:01:00.4]} 34. Bd3 {[%clk 0:01:07.5]}
34... Rgc8 {[%clk 0:00:54.4]} 35. Nd2 {[%clk 0:01:03.6]} 35... Rc1 {[%clk
0:00:54.1]} 36. Rg1 {[%clk 0:00:57.5]} 36... a4 {[%clk 0:00:45.5]} 37. h4 {[%clk
0:00:48.8]} 37... a3 {[%clk 0:00:39.4]} 38. bxa3 {[%clk 0:00:47.9]} 38... bxa3
{[%clk 0:00:40]} 39. Nb3 {[%clk 0:00:45.1]} 39... Rxg1+ {[%clk 0:00:37.6]} 40.
Kxg1 {[%clk 0:00:46]} 40... Rc3 {[%clk 0:00:37.4]} 41. Be2 {[%clk 0:00:39.5]}
41... Rxb3 {[%clk 0:00:37]} 0-1